fUST/lending_fUST_20240920
["ID","MTS","AMOUNT","RATE_DAILY","PERIOD"]
[338626227,1726809041801,-500.0,0.00016438,2]
[338626228,1726809041811,-583.45,0.00016438,2]
[338626229,1726809041823,-710.02,0.00016438,2]
[338626230,1726809041834,-500.0,0.00016438,2]
[338626231,1726809041844,-500.0,0.00016438,2]
[338626232,1726809041853,-500.0,0.00016438,2]
[338626233,1726809041864,-500.0,0.00016438,2]
[338626234,1726809041875,-500.0,0.00016438,2]
[338626235,1726809041884,-500.0,0.00016438,2]
[338626236,1726809041893,-500.0,0.00016438,2]
[338626237,1726809041907,-501.08490612,0.00016438,2]
[338626238,1726809041916,-500.0,0.00016438,2]
[338626239,1726809041928,-503.64570474,0.00016438,2]
[338626240,1726809041937,-500.0,0.00016438,2]
[338626241,1726809041948,-500.0,0.00016438,2]
[338626242,1726809041957,-500.0,0.00016438,2]
[338626243,1726809041967,-500.0,0.00016438,2]
[338626244,1726809041978,-500.0,0.00016438,2]
[338626245,1726809041987,-500.0,0.00016438,2]
[338626246,1726809041996,-602.83,0.00016438,2]
[338626247,1726809042005,-500.0,0.00016438,2]
[338626248,1726809042015,-680.73,0.00016438,2]
[338626249,1726809042024,-500.0,0.00016438,2]
[338626250,1726809042033,-500.0,0.00016438,2]
[338626251,1726809042041,-500.0,0.00016438,2]
[338626252,1726809042051,-500.0,0.00016438,2]
[338626253,1726809042061,-592.2125189,0.00016438,2]
[338626254,1726809042070,-500.21340804,0.00016438,2]
[338626255,1726809042079,-702.95,0.00016438,2]
[338626256,1726809042089,-500.0,0.00016438,2]
[338626257,1726809042098,-500.0,0.00016438,2]
[338626258,1726809042108,-500.0,0.00016438,2]
[338626259,1726809042116,-500.0,0.00016438,2]
[338626260,1726809042126,-500.0,0.00016438,2]
[338626261,1726809042136,-500.0,0.00016438,2]
[338626262,1726809042145,-500.0,0.00016438,2]
[338626263,1726809042155,-500.0,0.00016438,2]
[338626264,1726809042164,-500.0,0.00016438,2]
[338626265,1726809042177,-500.29797112,0.00016438,2]
[338626266,1726809042187,-500.0,0.00016438,2]
[338626267,1726809042196,-851.55,0.00016438,2]
[338626268,1726809042205,-500.0,0.00016438,2]
[338626269,1726809042214,-500.0,0.00016438,2]
[338626270,1726809042223,-504.1,0.00016438,2]
[338626271,1726809042232,-500.0,0.00016438,2]
[338626272,1726809042242,-500.0,0.00016438,2]
[338626273,1726809042251,-500.0,0.00016438,2]
[338626274,1726809042261,-500.0,0.00016438,2]
[338626275,1726809042270,-500.0,0.00016438,2]
[338626276,1726809042279,-500.0,0.00016438,2]
[338626277,1726809042289,-500.0,0.00016438,2]
[338626278,1726809042298,-500.0,0.00016438,2]
[338626279,1726809042309,-500.0,0.00016438,2]
[338626280,1726809042318,-501.19425539,0.00016438,2]
[338626281,1726809042328,-308.81050334,0.00016438,2]
[338626282,1726809042337,-500.0,0.00016438,2]
[338626283,1726809042347,-500.0,0.00016438,2]
[338626284,1726809042356,-500.0,0.00016438,2]
[338626285,1726809042366,-500.0,0.00016438,2]
[338626286,1726809042375,-500.0,0.00016438,2]
[338626287,1726809042386,-762.27,0.00016438,2]
[338626288,1726809042395,-500.98814064,0.00016438,2]
[338626289,1726809042404,-1000.0,0.00016438,2]
[338626290,1726809042414,-500.28870446,0.00016438,2]
[338626291,1726809042427,-747.56,0.00016438,2]
[338626292,1726809042436,-553.87,0.00016438,2]
[338626294,1726809042446,-500.0,0.00016438,2]
[338626295,1726809042455,-500.0,0.00016438,2]
[338626296,1726809042464,-500.0,0.00016438,2]
[338626298,1726809042474,-500.0,0.00016438,2]
[338626299,1726809042483,-914.54,0.00016438,2]
[338626300,1726809042493,-500.0,0.00016438,2]
[338626303,1726809042502,-500.0,0.00016438,2]
[338626305,1726809042511,-500.0,0.00016438,2]
[338626308,1726809042520,-500.0,0.00016438,2]
[338626312,1726809042530,-797.58,0.00016438,2]
[338626315,1726809042540,-873.23,0.00016438,2]
[338626316,1726809042550,-500.0,0.00016438,2]
[338626317,1726809042559,-500.0,0.00016438,2]
[338626318,1726809042568,-501.43835117,0.00016438,2]
[338626319,1726809042577,-500.0,0.00016438,2]
[338626320,1726809042586,-594.27,0.00016438,2]
[338626321,1726809042595,-614.08,0.00016438,2]
[338626322,1726809042604,-500.0,0.00016438,2]
[338626324,1726809042615,-500.0,0.00016438,2]
[338626325,1726809042626,-500.0,0.00016438,2]
[338626326,1726809042636,-526.02467085,0.00016438,2]
[338626327,1726809042646,-500.0,0.00016438,2]
[338626328,1726809042656,-500.0,0.00016438,2]
[338626329,1726809042668,-500.0,0.00016438,2]
[338626330,1726809042680,-500.0,0.00016438,2]
[338626331,1726809042690,-517.7,0.00016438,2]
[338626332,1726809042700,-500.0,0.00016438,2]
[338626333,1726809042711,-500.0,0.00016438,2]
[338626334,1726809042722,-500.0,0.00016438,2]
[338626335,1726809042734,-500.45577848,0.00016438,2]
[338626336,1726809042744,-553.11,0.00016438,2]
[338626337,1726809042754,-500.0,0.00016438,2]
[338626338,1726809042765,-500.0,0.00016438,2]
[338626339,1726809042774,-550.28,0.00016438,2]
[338626340,1726809042784,-500.0,0.00016438,2]
[338626341,1726809042794,-500.0,0.00016438,2]
[338626342,1726809042804,-500.0,0.00016438,2]
[338626343,1726809042814,-887.01,0.00016438,2]
[338626344,1726809042823,-500.0,0.00016438,2]
[338626345,1726809042834,-500.0,0.00016438,2]
[338626346,1726809042844,-500.0,0.00016438,2]
[338626347,1726809042855,-502.96817472,0.00016438,2]
[338626348,1726809042866,-500.0,0.00016438,2]
[338626349,1726809042877,-500.0,0.00016438,2]
[338626351,1726809042887,-446.70538196,0.00016438,2]
[338626353,1726809042902,-500.0,0.00016438,2]
[338626354,1726809042914,-500.0,0.00016438,2]
[338626355,1726809042924,-500.0,0.00016438,2]
[338626356,1726809042935,-527.52768385,0.00016438,2]
[338626357,1726809042946,-500.0,0.00016438,2]
[338626358,1726809042957,-500.0,0.00016438,2]
[338626359,1726809042967,-500.0,0.00016438,2]
[338626360,1726809042979,-500.0,0.00016438,2]
[338626361,1726809042989,-657.15,0.00016438,2]
[338626362,1726809042999,-500.0,0.00016438,2]
[338626363,1726809043010,-500.0,0.00016438,2]
[338626364,1726809043021,-500.0,0.00016438,2]
[338626365,1726809043031,-834.16,0.00016438,2]
[338626366,1726809043042,-500.0,0.00016438,2]
[338626367,1726809043052,-582.51,0.00016438,2]
[338626368,1726809043061,-500.0,0.00016438,2]
[338626369,1726809043071,-500.0,0.00016438,2]
[338626370,1726809043080,-542.58,0.00016438,2]
[338626371,1726809043090,-500.0,0.00016438,2]
[338626372,1726809043099,-500.0,0.00016438,2]
[338626373,1726809043108,-500.0,0.00016438,2]
[338626374,1726809043117,-500.0,0.00016438,2]
[338626375,1726809043127,-500.0,0.00016438,2]
[338626376,1726809043137,-500.0,0.00016438,2]
[338626377,1726809043148,-64564.37,0.00016438,2]
[338626378,1726809043159,-500.50216523,0.00016438,2]
[338626379,1726809043171,-500.0,0.00016438,2]
[338626380,1726809043183,-8312.87,0.00016438,2]
[338626381,1726809043193,-500.0,0.00016438,2]
[338626382,1726809043202,-500.0,0.00016438,2]
[338626383,1726809043212,-906.49,0.00016438,2]
[338626384,1726809043223,-906.49,0.00016438,2]
[338626385,1726809043232,-906.49,0.00016438,2]
[338626386,1726809043242,-500.0,0.00016438,2]
[338626387,1726809043253,-906.49,0.00016438,2]
[338626388,1726809043263,-906.49,0.00016438,2]
[338626389,1726809043273,-906.49,0.00016438,2]
[338626390,1726809043283,-906.49,0.00016438,2]
[338626391,1726809043294,-906.49,0.00016438,2]
[338626392,1726809043305,-906.49,0.00016438,2]
[338626393,1726809043316,-500.0,0.00016438,2]
[338626394,1726809043327,-906.49,0.00016438,2]
[338626395,1726809043336,-906.49,0.00016438,2]
[338626396,1726809043345,-500.0,0.00016438,2]
[338626397,1726809043355,-906.49,0.00016438,2]
[338626398,1726809043365,-906.49,0.00016438,2]
[338626399,1726809043375,-500.0,0.00016438,2]
[338626400,1726809043385,-759.30325792,0.00016438,2]
[338626401,1726809044010,-0.81661034,0.00016438,2]
[338626440,1726809527854,1000.0,0.0002051,120]
[338626469,1726809927377,250.0,0.0002,120]
[338626474,1726810036937,500.0,0.00014013,2]
[338626475,1726810041490,500.0,0.00014013,2]
[338626476,1726810043302,500.0,0.00014013,2]
[338626477,1726810043637,500.0,0.00014013,2]
[338626479,1726810051695,500.0,0.00014013,2]
[338626480,1726810052050,500.0,0.00014013,2]
[338626481,1726810052679,500.0,0.00014013,2]
[338626482,1726810052709,500.0,0.00014013,2]
[338626483,1726810053058,500.0,0.00014013,2]
[338626484,1726810053091,500.0,0.00014013,2]
[338626485,1726810053410,500.0,0.00014013,2]
[338626486,1726810053525,500.0,0.00014013,2]
[338626487,1726810053891,500.0,0.00014013,2]
[338626488,1726810053922,500.0,0.00014013,2]
[338626489,1726810054242,500.0,0.00014013,2]
[338626490,1726810054270,500.0,0.00014013,2]
[338626491,1726810054590,900.0,0.00014013,2]
[338626492,1726810054620,500.0,0.00014013,2]
[338626493,1726810054990,800.0,0.00014013,2]
[338626540,1726810232401,-300.0,0.00015207,2]
[338626541,1726810232413,-300.0,0.00015207,2]
[338626542,1726810232425,-1593.72963489,0.00015208,2]
[338626543,1726810232438,-462.46397076,0.00015208,2]
[338626544,1726810232452,-925.2664532,0.00015208,2]
[338626545,1726810232470,-1669.69707867,0.00015208,2]
[338626546,1726810232484,-1628.1995202,0.00015208,2]
[338626564,1726810240117,-18620.64334228,0.00015208,2]
[338626565,1726810240129,-160.611092,0.00015305,2]
[338626566,1726810240140,-160.611092,0.00016102,2]
[338626567,1726810240151,-4063.91120116,0.00016177,2]
[338626568,1726810240162,-154.79661188,0.0001618,2]
[338626569,1726810240172,-150.112256,0.000162,2]
[338626570,1726810240182,-150.112233,0.000163,2]
[338626571,1726810240193,-2170.55482833,0.000163,2]
[338626572,1726810240204,-1630.23900629,0.00016338,2]
[338626573,1726810240216,-500.0,0.0001634,2]
[338626574,1726810240227,-150.112233,0.000164,2]
[338626575,1726810240237,-150.0,0.000164,2]
[338626576,1726810240247,-6275.773601,0.000164,2]
[338626577,1726810240257,-153.0,0.000164,2]
[338626578,1726810240266,-153.0,0.000164,2]
[338626579,1726810240275,-153.0,0.000164,2]
[338626580,1726810240285,-153.0,0.000164,2]
[338626581,1726810240295,-100161.722135,0.00016418,2]
[338626582,1726810240305,-10686.069314,0.00016418,2]
[338626583,1726810240315,-272.29347873,0.00016427,2]
[338626584,1726810240324,-500.0,0.00016427,2]
[338626585,1726810240334,-197.78268699,0.00016427,2]
[338626586,1726810240344,-500.0,0.00016427,2]
[338626587,1726810240354,-150242.583203,0.00016428,2]
[338626588,1726810240363,-16029.1039711,0.00016428,2]
[338626589,1726810240372,-553.34310958,0.00016437,2]
[338626590,1726810240382,-467.53905659,0.00016437,2]
[338626591,1726810240393,-500.0,0.00016437,2]
[338626592,1726810240403,-264.51312861,0.00016437,2]
[338626593,1726810240413,-500.0,0.00016437,2]
[338626594,1726810240422,-500.0,0.00016437,2]
[338626595,1726810240433,-471.59057225,0.00016437,2]
[338626596,1726810240444,-500.0,0.00016437,2]
[338626597,1726810240455,-500.0,0.00016437,2]
[338626598,1726810240469,-500.0,0.00016437,2]
[338626599,1726810240480,-500.0,0.00016437,2]
[338626600,1726810240492,-250.0,0.00016437,2]
[338626601,1726810240503,-500.0,0.00016438,2]
[338626602,1726810240513,-500.0,0.00016438,2]
[338626603,1726810240524,-997.77,0.00016438,2]
[338626604,1726810240534,-584.50685942,0.00016438,2]
[338626605,1726810240545,-500.0,0.00016438,2]
[338626606,1726810240557,-500.0,0.00016438,2]
[338626607,1726810240568,-519.89353914,0.00016438,2]
[338626608,1726810240579,-500.0,0.00016438,2]
[338626609,1726810240592,-500.0,0.00016438,2]
[338626610,1726810240603,-500.0,0.00016438,2]
[338626611,1726810240613,-500.0,0.00016438,2]
[338626612,1726810240623,-736.36,0.00016438,2]
[338626613,1726810240632,-500.0,0.00016438,2]
[338626614,1726810240643,-724.14,0.00016438,2]
[338626615,1726810240653,-500.0,0.00016438,2]
[338626616,1726810240663,-500.0,0.00016438,2]
[338626617,1726810240672,-500.0,0.00016438,2]
[338626618,1726810240682,-500.0,0.00016438,2]
[338626619,1726810240691,-500.0,0.00016438,2]
[338626620,1726810240701,-500.0,0.00016438,2]
[338626621,1726810240711,-550.32285136,0.00016438,2]
[338626622,1726810240721,-500.0,0.00016438,2]
[338626623,1726810240730,-500.0,0.00016438,2]
[338626624,1726810240740,-654.31,0.00016438,2]
[338626625,1726810240750,-500.99201042,0.00016438,2]
[338626626,1726810240759,-500.0,0.00016438,2]
[338626627,1726810240768,-500.0,0.00016438,2]
[338626628,1726810240778,-500.0,0.00016438,2]
[338626629,1726810240787,-500.0,0.00016438,2]
[338626630,1726810240798,-500.0,0.00016438,2]
[338626631,1726810240807,-528.67,0.00016438,2]
[338626632,1726810240817,-500.0,0.00016438,2]
[338626633,1726810240828,-500.0,0.00016438,2]
[338626634,1726810240838,-1079.31,0.00016438,2]
[338626635,1726810240847,-748.64,0.00016438,2]
[338626636,1726810240857,-506.6203096,0.00016438,2]
[338626637,1726810240867,-537.22,0.00016438,2]
[338626638,1726810240876,-834.91,0.00016438,2]
[338626639,1726810240885,-500.0,0.00016438,2]
[338626640,1726810240895,-559.14,0.00016438,2]
[338626641,1726810240904,-500.0,0.00016438,2]
[338626642,1726810240914,-500.0,0.00016438,2]
[338626643,1726810240923,-500.0,0.00016438,2]
[338626644,1726810240933,-500.0,0.00016438,2]
[338626645,1726810240943,-500.0,0.00016438,2]
[338626646,1726810240953,-500.0,0.00016438,2]
[338626647,1726810240962,-657.22,0.00016438,2]
[338626648,1726810240972,-218.68,0.00016438,2]
[338626649,1726810240981,-500.0,0.00016438,2]
[338626650,1726810240991,-500.0,0.00016438,2]
[338626651,1726810241000,-500.0,0.00016438,2]
[338626652,1726810241011,-336.45697618,0.00016438,2]
[338626653,1726810241021,-500.0,0.00016438,2]
[338626654,1726810241031,-500.0,0.00016438,2]
[338626655,1726810241041,-500.0,0.00016438,2]
[338626656,1726810241051,-500.0,0.00016438,2]
[338626657,1726810241061,-500.0,0.00016438,2]
[338626658,1726810241072,-500.0,0.00016438,2]
[338626659,1726810241082,-502.94278167,0.00016438,2]
[338626660,1726810241092,-500.0,0.00016438,2]
[338626661,1726810241101,-1117.08,0.00016438,2]
[338626662,1726810241110,-500.0,0.00016438,2]
[338626663,1726810241120,-500.0,0.00016438,2]
[338626664,1726810241129,-500.0,0.00016438,2]
[338626665,1726810241139,-316.83972755,0.00016438,2]
[338626666,1726810241149,-500.0,0.00016438,2]
[338626667,1726810241159,-500.0,0.00016438,2]
[338626668,1726810241169,-500.0,0.00016438,2]
[338626669,1726810241178,-500.0,0.00016438,2]
[338626670,1726810241187,-500.0,0.00016438,2]
[338626671,1726810241197,-500.0,0.00016438,2]
[338626672,1726810241206,-544.52,0.00016438,2]
[338626673,1726810241216,-162.42202752,0.00016438,2]
[338626674,1726810241225,-648.78,0.00016438,2]
[338626675,1726810241235,-500.0,0.00016438,2]
[338626676,1726810241244,-500.0,0.00016438,2]
[338626677,1726810241253,-500.0,0.00016438,2]
[338626678,1726810241263,-500.0,0.00016438,2]
[338626679,1726810241273,-210.16951302,0.00016438,2]
[338626680,1726810241283,-500.0,0.00016438,2]
[338626681,1726810241292,-823.36,0.00016438,2]
[338626682,1726810241302,-587.46783993,0.00016438,2]
[338626683,1726810241311,-500.0,0.00016438,2]
[338626684,1726810241321,-500.0,0.00016438,2]
[338626685,1726810241330,-500.0,0.00016438,2]
[338626686,1726810241340,-500.0,0.00016438,2]
[338626687,1726810241350,-500.0,0.00016438,2]
[338626688,1726810241359,-500.0,0.00016438,2]
[338626689,1726810241368,-500.0,0.00016438,2]
[338626690,1726810241378,-220.94491222,0.00016438,2]
[338626691,1726810241387,-680.43,0.00016438,2]
[338626692,1726810241396,-500.0,0.00016438,2]
[338626693,1726810241406,-500.0,0.00016438,2]
[338626694,1726810241417,-500.0,0.00016438,2]
[338626695,1726810241427,-500.0,0.00016438,2]
[338626696,1726810241437,-577.71,0.00016438,2]
[338626697,1726810241447,-500.0,0.00016438,2]
[338626698,1726810241457,-564.80453394,0.00016438,2]
[338626699,1726810241470,-500.0,0.00016438,2]
[338626700,1726810241481,-500.0,0.00016438,2]
[338626701,1726810241492,-500.0,0.00016438,2]
[338626702,1726810241502,-500.0,0.00016438,2]
[338626703,1726810241516,-500.0,0.00016438,2]
[338626704,1726810241526,-500.0,0.00016438,2]
[338626705,1726810241538,-500.0,0.00016438,2]
[338626706,1726810241549,-500.0,0.00016438,2]
[338626707,1726810241559,-500.0,0.00016438,2]
[338626708,1726810241568,-500.0,0.00016438,2]
[338626709,1726810241578,-500.0,0.00016438,2]
[338626710,1726810241588,-308.81050334,0.00016438,2]
[338626711,1726810241598,-500.0,0.00016438,2]
[338626712,1726810241607,-500.0,0.00016438,2]
[338626713,1726810241616,-500.0,0.00016438,2]
[338626714,1726810241625,-500.0,0.00016438,2]
[338626715,1726810241634,-500.0,0.00016438,2]
[338626716,1726810241644,-500.0,0.00016438,2]
[338626717,1726810241653,-500.28870446,0.00016438,2]
[338626718,1726810241662,-500.0,0.00016438,2]
[338626719,1726810241672,-528.53,0.00016438,2]
[338626720,1726810241682,-500.0,0.00016438,2]
[338626721,1726810241691,-317.4,0.00016438,2]
[338626722,1726810241701,-1121.01,0.00016438,2]
[338626723,1726810241710,-500.0,0.00016438,2]
[338626724,1726810241719,-500.0,0.00016438,2]
[338626725,1726810241730,-500.0,0.00016438,2]
[338626726,1726810241740,-500.0,0.00016438,2]
[338626727,1726810241750,-500.0,0.00016438,2]
[338626728,1726810241759,-500.0,0.00016438,2]
[338626729,1726810241769,-911.2,0.00016438,2]
[338626730,1726810241780,-501.43925429,0.00016438,2]
[338626731,1726810241791,-500.0,0.00016438,2]
[338626732,1726810241803,-500.0,0.00016438,2]
[338626733,1726810241815,-232.73,0.00016438,2]
[338626734,1726810241824,-500.0,0.00016438,2]
[338626735,1726810241834,-534.93,0.00016438,2]
[338626736,1726810241844,-508.75,0.00016438,2]
[338626737,1726810241853,-500.0,0.00016438,2]
[338626738,1726810241863,-500.0,0.00016438,2]
[338626739,1726810241874,-500.0,0.00016438,2]
[338626740,1726810241885,-500.0,0.00016438,2]
[338626741,1726810241896,-620.1,0.00016438,2]
[338626742,1726810241908,-500.0,0.00016438,2]
[338626743,1726810241919,-151.32479679,0.00016438,2]
[338626744,1726810241929,-500.92332934,0.00016438,2]
[338626745,1726810241940,-500.0,0.00016438,2]
[338626746,1726810241950,-500.69616665,0.00016438,2]
[338626747,1726810241961,-2189.21,0.00016438,2]
[338626748,1726810241970,-500.0,0.00016438,2]
[338626749,1726810241980,-500.0,0.00016438,2]
[338626750,1726810241990,-500.0,0.00016438,2]
[338626751,1726810242000,-500.0,0.00016438,2]
[338626752,1726810242011,-500.0,0.00016438,2]
[338626753,1726810242021,-500.0,0.00016438,2]
[338626754,1726810242032,-500.0,0.00016438,2]
[338626755,1726810242041,-907.84,0.00016438,2]
[338626756,1726810242051,-500.0,0.00016438,2]
[338626757,1726810242061,-500.0,0.00016438,2]
[338626758,1726810242071,-500.0,0.00016438,2]
[338626759,1726810242082,-500.0,0.00016438,2]
[338626760,1726810242092,-500.0,0.00016438,2]
[338626761,1726810242102,-500.0,0.00016438,2]
[338626762,1726810242111,-500.85091195,0.00016438,2]
[338626763,1726810242122,-500.0,0.00016438,2]
[338626764,1726810242131,-677.98,0.00016438,2]
[338626765,1726810242142,-500.0,0.00016438,2]
[338626766,1726810242152,-709.82,0.00016438,2]
[338626767,1726810242162,-500.0,0.00016438,2]
[338626768,1726810242171,-500.0,0.00016438,2]
[338626769,1726810242181,-732.93,0.00016438,2]
[338626770,1726810242192,-500.0,0.00016438,2]
[338626771,1726810242202,-500.0,0.00016438,2]
[338626772,1726810242213,-500.0,0.00016438,2]
[338626773,1726810242223,-500.0,0.00016438,2]
[338626774,1726810242234,-500.0,0.00016438,2]
[338626775,1726810242245,-500.0,0.00016438,2]
[338626776,1726810242255,-886.75,0.00016438,2]
[338626777,1726810242265,-500.0,0.00016438,2]
[338626778,1726810242274,-607.84,0.00016438,2]
[338626779,1726810242284,-500.0,0.00016438,2]
[338626780,1726810242293,-500.0,0.00016438,2]
[338626781,1726810242303,-500.0,0.00016438,2]
[338626782,1726810242312,-500.0,0.00016438,2]
[338626783,1726810242321,-500.0,0.00016438,2]
[338626784,1726810242330,-500.0,0.00016438,2]
[338626785,1726810242341,-500.0,0.00016438,2]
[338626786,1726810242351,-500.0,0.00016438,2]
[338626787,1726810242361,-500.0,0.00016438,2]
[338626788,1726810242370,-500.0,0.00016438,2]
[338626789,1726810242379,-500.0,0.00016438,2]
[338626790,1726810242389,-500.0,0.00016438,2]
[338626791,1726810242398,-151.0,0.00016438,2]
[338626792,1726810242407,-446.70538196,0.00016438,2]
[338626793,1726810242417,-500.0,0.00016438,2]
[338626794,1726810242426,-500.0,0.00016438,2]
[338626795,1726810242435,-503.12962602,0.00016438,2]
[338626796,1726810242444,-579.51,0.00016438,2]
[338626797,1726810242454,-500.0,0.00016438,2]
[338626798,1726810242466,-1803.63,0.00016438,2]
[338626799,1726810242475,-1803.63,0.00016438,2]
[338626800,1726810242485,-1803.63,0.00016438,2]
[338626801,1726810242495,-1803.63,0.00016438,2]
[338626802,1726810242504,-1803.63,0.00016438,2]
[338626803,1726810242514,-1803.63,0.00016438,2]
[338626805,1726810242692,-1803.63,0.00016438,2]
[338626806,1726810242703,-500.0,0.00016438,2]
[338626807,1726810242712,-1000.0,0.00016438,2]
[338626809,1726810242722,-500.98814064,0.00016438,2]
[338626811,1726810242731,-796.92,0.00016438,2]
[338626812,1726810242740,-500.0,0.00016438,2]
[338626813,1726810242750,-500.0,0.00016438,2]
[338626814,1726810242759,-781.54,0.00016438,2]
[338626815,1726810242768,-486.39956229,0.00016438,2]
[338626816,1726810242779,-500.0,0.00016438,2]
[338626817,1726810242789,-579.05,0.00016438,2]
[338626818,1726810242799,-500.0,0.00016438,2]
[338626820,1726810242809,-500.0,0.00016438,2]
[338626821,1726810242819,-568.02,0.00016438,2]
[338626822,1726810242831,-500.0,0.00016438,2]
[338626823,1726810242841,-500.0,0.00016438,2]
[338626824,1726810242850,-500.0,0.00016438,2]
[338626825,1726810242859,-500.0,0.00016438,2]
[338626827,1726810242869,-914.54,0.00016438,2]
[338626829,1726810242881,-500.0,0.00016438,2]
[338626831,1726810242891,-500.0,0.00016438,2]
[338626833,1726810242901,-500.0,0.00016438,2]
[338626834,1726810242912,-797.58,0.00016438,2]
[338626836,1726810242923,-707.85,0.00016438,2]
[338626837,1726810242933,-500.0,0.00016438,2]
[338626838,1726810242943,-500.0,0.00016438,2]
[338626839,1726810242953,-500.0,0.00016438,2]
[338626840,1726810242963,-500.73074249,0.00016438,2]
[338626841,1726810242973,-500.0,0.00016438,2]
[338626843,1726810242983,-500.0,0.00016438,2]
[338626844,1726810242992,-500.0,0.00016438,2]
[338626846,1726810243002,-500.0,0.00016438,2]
[338626848,1726810243011,-500.0,0.00016438,2]
[338626849,1726810243021,-500.0,0.00016438,2]
[338626850,1726810243030,-500.0,0.00016438,2]
[338626851,1726810243040,-501.43835117,0.00016438,2]
[338626852,1726810243049,-500.0,0.00016438,2]
[338626853,1726810243059,-500.0,0.00016438,2]
[338626854,1726810243068,-614.08,0.00016438,2]
[338626855,1726810243078,-500.0,0.00016438,2]
[338626856,1726810243088,-500.0,0.00016438,2]
[338626857,1726810243097,-542.98,0.00016438,2]
[338626858,1726810243106,-566.11765676,0.00016438,2]
[338626859,1726810243115,-500.0,0.00016438,2]
[338626860,1726810243124,-936.17,0.00016438,2]
[338626861,1726810243134,-500.0,0.00016438,2]
[338626862,1726810243144,-500.0,0.00016438,2]
[338626863,1726810243153,-526.02467085,0.00016438,2]
[338626864,1726810243162,-500.0,0.00016438,2]
[338626865,1726810243172,-506.040777,0.00016438,2]
[338626866,1726810243181,-832.04,0.00016438,2]
[338626867,1726810243191,-500.0,0.00016438,2]
[338626868,1726810243200,-506.040777,0.00016438,2]
[338626869,1726810243209,-500.0,0.00016438,2]
[338626870,1726810243218,-500.0,0.00016438,2]
[338626872,1726810243227,-500.0,0.00016438,2]
[338626873,1726810243236,-500.0,0.00016438,2]
[338626874,1726810243245,-500.0,0.00016438,2]
[338626875,1726810243254,-500.0,0.00016438,2]
[338626876,1726810243264,-500.0,0.00016438,2]
[338626877,1726810243273,-500.63728807,0.00016438,2]
[338626878,1726810243283,-500.0,0.00016438,2]
[338626879,1726810243292,-500.0,0.00016438,2]
[338626880,1726810243301,-500.0,0.00016438,2]
[338626881,1726810243310,-500.0,0.00016438,2]
[338626882,1726810243319,-500.0,0.00016438,2]
[338626883,1726810243328,-500.0,0.00016438,2]
[338626884,1726810243339,-500.0,0.00016438,2]
[338626885,1726810243348,-550.28,0.00016438,2]
[338626886,1726810243357,-553.11,0.00016438,2]
[338626887,1726810243366,-500.0,0.00016438,2]
[338626888,1726810243375,-500.0,0.00016438,2]